fUST/lending_fUST_20250531
["ID","MTS","AMOUNT","RATE_DAILY","PERIOD"]
[363269669,1748656053240,-430.0,0.00019452,2]
[363269670,1748656053265,-1172.9,0.00019452,2]
[363269671,1748656053292,-1744.19,0.00019452,2]
[363269672,1748656053315,-1425.95,0.00019452,2]
[363269673,1748656053338,-529.54,0.00019452,2]
[363269674,1748656053363,-612.2,0.00019452,2]
[363269675,1748656053387,-181.08010149,0.00019453,2]
[363269676,1748656053409,-301.25664266,0.00019499,2]
[363269677,1748656053431,-2000.0,0.000195,2]
[363269678,1748656053454,-151.0,0.000195,2]
[363269679,1748656053478,-151.0,0.000195,2]
[363269680,1748656053501,-146553.81310631,0.000195,2]
[363269681,1748656053528,-151.0,0.000195,2]
[363269682,1748656053552,-318.902238,0.000195,2]
[363269683,1748656053578,-318.902238,0.000195,2]
[363269684,1748656053601,-151.0,0.000195,2]
[363269685,1748656053624,-151.0,0.000195,2]
[363269686,1748656053647,-207.176094,0.000195,2]
[363269687,1748656053670,-207.176094,0.000195,2]
[363269688,1748656053692,-990.4,0.000195,2]
[363269689,1748656053715,-151.0,0.000195,2]
[363269690,1748656053739,-151.0,0.000195,2]
[363269691,1748656053762,-151.0,0.000195,2]
[363269692,1748656053791,-151.0,0.000195,2]
[363269693,1748656053814,-151.0,0.000195,2]
[363269694,1748656053837,-151.0,0.000195,2]
[363269695,1748656053861,-1000.0,0.000195,2]
[363269696,1748656053886,-195.589229,0.000195,2]
[363269697,1748656053910,-1193.84485325,0.000195,2]
[363269698,1748656053950,-195.589229,0.000195,2]
[363269699,1748656053979,-187.78006525,0.00019508,2]
[363269700,1748656054009,-587.0,0.00019517,2]
[363269701,1748656054037,-587.0,0.00019518,2]
[363269702,1748656054063,-1355.49097074,0.00019521,25]
[363269703,1748656054088,-160.0,0.00019526,3]
[363269704,1748656054113,-277.46876436,0.00019532,2]
[363269705,1748656054138,-7812.78158332,0.00019533,2]
[363269706,1748656054163,-206.0,0.0001956,2]
[363269707,1748656054190,-194.72792766,0.00019563,2]
[363269708,1748656054218,-2865.65,0.00019583,2]
[363269709,1748656054249,-4235.81178689,0.0001959,2]
[363269710,1748656054279,-151.0,0.000196,2]
[363269711,1748656054305,-2000.0,0.00019616,2]
[363269712,1748656054330,-201.93286099,0.00019618,2]
[363269713,1748656054355,-151.0,0.00019629,2]
[363269714,1748656054381,-176.019814,0.00019629,2]
[363269715,1748656054407,-176.019814,0.00019629,2]
[363269716,1748656054433,-453.309988,0.00019629,2]
[363269717,1748656054458,-453.309988,0.00019629,2]
[363269718,1748656054482,-151.0,0.00019629,2]
[363269719,1748656054506,-151.0,0.00019629,2]
[363269720,1748656054533,-151.0,0.00019629,2]
[363269721,1748656054557,-151.0,0.00019629,2]
[363269722,1748656054581,-5000.0,0.00019629,2]
[363269723,1748656054604,-151.0,0.00019633,2]
[363269724,1748656054626,-151.0,0.00019633,2]
[363269725,1748656054648,-1161.758364,0.00019633,2]
[363269726,1748656054670,-1161.758364,0.00019633,2]
[363269727,1748656054692,-151.0,0.00019633,2]
[363269728,1748656054715,-575.979099,0.00019633,2]
[363269729,1748656054739,-575.979099,0.00019633,2]
[363269730,1748656054761,-1256.43873,0.00019633,2]
[363269731,1748656054788,-1256.43873,0.00019633,2]
[363269732,1748656054809,-2802.639793,0.00019633,2]
[363269733,1748656054830,-2802.639793,0.00019633,2]
[363269734,1748656054852,-151.0,0.00019633,2]
[363269735,1748656054876,-1355.49097074,0.00019658,27]
[363269736,1748656054897,-157.03337844,0.00019668,2]
[363269737,1748656054921,-531.785592,0.00019671,2]
[363269738,1748656054942,-531.785592,0.00019671,2]
[363269739,1748656054966,-1144.3770804,0.00019671,2]
[363269740,1748656054988,-209.40437684,0.00019673,2]
[363269741,1748656055010,-151.0,0.00019697,2]
[363269742,1748656055035,-728.4905794,0.00019699,2]
[363269743,1748656055059,-151.0,0.000197,2]
[363269744,1748656055081,-160.0,0.00019703,4]
[363269745,1748656055104,-189.87791265,0.00019724,2]
[363269746,1748656055127,-1627.51,0.00019724,2]
[363269747,1748656055150,-430.0,0.00019724,2]
[363269748,1748656055173,-430.0,0.00019724,2]
[363269749,1748656055197,-430.0,0.00019724,2]
[363269750,1748656055220,-608.15,0.00019724,2]
[363269751,1748656055242,-971.71,0.00019724,2]
[363269752,1748656055265,-432.24,0.00019724,2]
[363269753,1748656055292,-982.9,0.00019724,2]
[363269754,1748656055316,-550.94303397,0.00019724,2]
[363269755,1748656055339,-430.0,0.00019724,2]
[363269756,1748656055362,-842.82,0.00019726,2]
[363269757,1748656055385,-430.0,0.00019726,2]
[363269758,1748656055409,-2189.94,0.00019726,2]
[363269759,1748656055432,-1149.04,0.00019726,2]
[363269760,1748656055455,-430.0,0.00019726,2]
[363269761,1748656055480,-644.15,0.00019726,2]
[363269762,1748656055503,-430.0,0.00019726,2]
[363269763,1748656055533,-963.09,0.00019726,2]
[363269764,1748656055696,-1513.41,0.00019726,2]
[363269765,1748656055723,-1857.4,0.00019726,2]
[363269766,1748656055747,-595.82,0.00019726,2]
[363269767,1748656055774,-716.67,0.00019726,2]
[363269768,1748656055796,-430.0,0.00019726,2]
[363269769,1748656055818,-430.0,0.00019726,2]
[363269770,1748656055841,-1076.82,0.00019726,2]
[363269771,1748656055864,-960.05,0.00019726,2]
[363269772,1748656055890,-430.0,0.00019726,2]
[363269773,1748656055913,-1172.9,0.00019726,2]
[363269774,1748656055949,-1744.19,0.00019726,2]
[363269775,1748656055975,-1425.95,0.00019726,2]
[363269776,1748656055997,-529.54,0.00019726,2]
[363269777,1748656056024,-612.2,0.00019726,2]
[363269778,1748656056047,-217.15233878,0.00019728,2]
[363269779,1748656056069,-1664.726438,0.0001978,5]
[363269780,1748656056092,-225.18697532,0.00019783,2]
[363269781,1748656056114,-1355.49097074,0.00019796,28]
[363269782,1748656056135,-57966.55431381,0.000198,2]
[363269783,1748656056157,-151.0,0.000198,2]
[363269784,1748656056179,-151.0,0.000198,2]
[363269785,1748656056202,-151.0,0.000198,2]
[363269786,1748656056227,-207.176094,0.000198,2]
[363269787,1748656056250,-207.176094,0.000198,2]
[363269788,1748656056277,-538.945644,0.000198,2]
[363269789,1748656056301,-538.945644,0.000198,2]
[363269790,1748656056324,-151.0,0.000198,2]
[363269791,1748656056347,-151.0,0.000198,2]
[363269792,1748656056369,-151.0,0.000198,2]
[363269793,1748656056392,-2748.309826,0.000198,2]
[363269794,1748656056414,-2748.309826,0.000198,2]
[363269795,1748656056437,-217.302792,0.000198,2]
[363269796,1748656056459,-217.302792,0.000198,2]
[363269797,1748656056482,-151.0,0.000198,2]
[363269798,1748656056505,-151.0,0.000198,2]
[363269799,1748656056532,-797.659667,0.000198,2]
[363269800,1748656056555,-797.659667,0.000198,2]
[363269801,1748656056576,-151.0,0.000198,2]
[363269802,1748656056600,-1000.0,0.000198,5]
[363269803,1748656056622,-1000.0,0.0001982,5]
[363269804,1748656056648,-4235.81178689,0.00019831,2]
[363269805,1748656056670,-233.51889341,0.00019838,2]
[363269806,1748656056691,-1000.0,0.0001984,5]
[363269807,1748656056713,-1000.0,0.0001986,5]
[363269808,1748656056737,-160.0,0.00019879,5]
[363269809,1748656056758,-1000.0,0.0001988,5]
[363269810,1748656056784,-242.15909246,0.00019893,2]
[363269811,1748656056807,-1000.0,0.000199,5]
[363269812,1748656056828,-203.68529296,0.000199,2]
[363269813,1748656056849,-206.0,0.0001991,2]
[363269814,1748656056869,-1000.0,0.0001992,5]
[363269815,1748656056894,-1355.49097074,0.00019933,29]
[363269816,1748656056916,-1000.0,0.0001994,5]
[363269817,1748656056938,-251.11897888,0.00019948,2]
[363269818,1748656056960,-1000.0,0.0001996,5]
[363269819,1748656056982,-399.17394173,0.00019973,2]
[363269820,1748656057002,-500.0,0.00019973,2]
[363269821,1748656057025,-500.93515612,0.00019973,2]
[363269822,1748656057046,-500.0,0.00019973,2]
[363269823,1748656057068,-500.0,0.00019973,2]
[363269824,1748656057089,-500.0,0.00019973,2]
[363269825,1748656057110,-500.0,0.00019973,2]
[363269826,1748656057132,-500.0,0.00019973,2]
[363269827,1748656057153,-400.49783772,0.00019973,2]
[363269828,1748656057175,-500.0,0.00019973,2]
[363269829,1748656057199,-500.0,0.00019973,2]
[363269830,1748656057223,-500.0,0.00019973,2]
[363269831,1748656057245,-500.0,0.00019973,2]
[363269832,1748656057265,-341.58993269,0.00019973,2]
[363269833,1748656057289,-160.18894433,0.00019973,2]
[363269834,1748656057311,-450.3400897,0.00019973,2]
[363269835,1748656057334,-500.0,0.00019973,2]
[363269836,1748656057356,-500.0,0.00019973,2]
[363269837,1748656057377,-575.30694928,0.00019973,2]
[363269838,1748656057399,-500.0,0.00019973,2]
[363269839,1748656057420,-500.0,0.00019973,2]
[363269840,1748656057445,-160.19413256,0.00019973,2]
[363269841,1748656057467,-500.0,0.00019973,2]
[363269842,1748656057488,-500.0,0.00019973,2]
[363269843,1748656057510,-503.57216735,0.00019973,2]
[363269844,1748656057532,-500.0,0.00019973,2]
[363269845,1748656057553,-500.0,0.00019973,2]
[363269846,1748656057574,-501.02215784,0.00019973,2]
[363269847,1748656057595,-500.0,0.00019973,2]
[363269848,1748656057615,-500.0,0.00019973,2]
[363269849,1748656057637,-500.9753311,0.00019973,2]
[363269850,1748656057658,-271.68240806,0.00019973,2]
[363269851,1748656057679,-500.0,0.00019973,2]
[363269852,1748656057700,-500.0,0.00019973,2]
[363269853,1748656057721,-500.0,0.00019973,2]
[363269854,1748656057742,-500.0,0.00019973,2]
[363269855,1748656057762,-502.73144682,0.00019973,2]
[363269856,1748656057786,-500.0,0.00019973,2]
[363269857,1748656057807,-500.0,0.00019973,2]
[363269858,1748656057828,-306.8507996,0.00019973,2]
[363269859,1748656057848,-500.0,0.00019973,2]
[363269860,1748656057869,-500.0,0.00019973,2]
[363269861,1748656057894,-500.0,0.00019973,2]
[363269862,1748656057914,-1000.0,0.0001998,5]
[363269863,1748656057937,-365.194504,0.00019997,2]
[363269864,1748656057958,-365.194504,0.00019997,2]
[363269865,1748656057979,-206.181133,0.00019997,2]
[363269866,1748656058000,-206.181133,0.00019997,2]
[363269867,1748656058024,-151.0,0.00019997,2]
[363269868,1748656058047,-367.193508,0.00019997,2]
[363269869,1748656058068,-367.193508,0.00019997,2]
[363269870,1748656058089,-617.8020549,0.00019998,2]
[363269871,1748656058110,-151.0,0.00019998,2]
[363269872,1748656058133,-1627.51,0.00019998,2]
[363269873,1748656058155,-160.69046993,0.00019998,2]
[363269874,1748656058177,-430.0,0.00019998,2]
[363269875,1748656058199,-430.0,0.00019998,2]
[363269876,1748656058221,-608.15,0.00019998,2]
[363269877,1748656058243,-971.71,0.00019998,2]
[363269878,1748656058266,-432.24,0.00019998,2]
[363269879,1748656058292,-982.9,0.00019998,2]
[363269880,1748656058315,-430.0,0.00019998,2]
[363269881,1748656058337,-151.0,0.00019999,2]
[363269882,1748656058359,-151.0,0.00019999,2]
[363269883,1748656058381,-384.641853,0.00019999,2]
[363269884,1748656058402,-384.641853,0.00019999,2]
[363269885,1748656058423,-151.0,0.00019999,2]
[363269886,1748656058444,-151.0,0.00019999,2]
[363269887,1748656058465,-365.194504,0.00019999,2]
[363269888,1748656058606,-365.194504,0.00019999,2]
[363269889,1748656058629,-156.935025,0.00019999,2]
[363269890,1748656058652,-156.935025,0.00019999,2]
[363269891,1748656058673,-151.0,0.00019999,2]
[363269892,1748656058695,-206.181133,0.00019999,2]
[363269893,1748656058717,-206.181133,0.00019999,2]
[363269894,1748656058738,-151.0,0.00019999,2]
[363269895,1748656058760,-151.0,0.00019999,2]
[363269896,1748656058785,-318.902238,0.00019999,2]
[363269897,1748656058806,-318.902238,0.00019999,2]
[363269898,1748656058828,-367.193508,0.00019999,2]
[363269899,1748656058850,-367.193508,0.00019999,2]
[363269900,1748656058872,-10153.40475242,0.0002,2]
[363269901,1748656058895,-1007.0,0.0002,2]
[363269902,1748656058919,-1007.0,0.0002,3]
[363269903,1748656058941,-1196.7965151,0.0002,2]
[363269904,1748656058965,-500.3174076,0.0002,2]
[363269905,1748656058988,-268.0,0.0002,7]
[363269906,1748656059011,-19170.97348075,0.0002,2]
[363269907,1748656059364,-430.0,0.00016438,2]
[363269908,1748656059387,-956.47,0.00016712,2]
[363269909,1748656059408,-430.0,0.00016712,2]
[363269910,1748656059433,-956.47,0.00016986,2]
[363269911,1748656059454,-430.0,0.00016986,2]
[363269912,1748656059475,-956.47,0.0001726,2]
[363269913,1748656059497,-430.0,0.0001726,2]
[363269914,1748656059518,-176.414694,0.000173,2]
[363269915,1748656059545,-956.47,0.00017534,2]
[363269916,1748656059566,-430.0,0.00017534,2]
[363269917,1748656059589,-956.47,0.00017808,2]
[363269918,1748656059610,-430.0,0.00017808,2]
[363269919,1748656059631,-364.2452897,0.0001789,2]
[363269920,1748656059653,-956.47,0.00018082,2]
[363269921,1748656059675,-430.0,0.00018082,2]
[363269922,1748656059698,-956.47,0.00018356,2]
[363269923,1748656059719,-430.0,0.00018356,2]
[363269924,1748656059742,-956.47,0.0001863,2]
[363269925,1748656059763,-956.47,0.00018904,2]
[363269926,1748656059787,-956.47,0.00019178,2]
[363269927,1748656059806,-119640.02651925,0.0002,2]
[363269928,1748656059826,-3210.0,0.0002,2]
[363269929,1748656059845,-2756.0,0.0002,2]
[363269930,1748656059864,-35481.53748151,0.0002,2]
[363269931,1748656059885,-1030.0,0.0002,2]
[363269932,1748656059905,-10264.0,0.0002,2]
[363269933,1748656059923,-17275.0,0.0002,2]
[363269934,1748656059943,-194537.13685354,0.0002,2]
[363269935,1748656060244,-430.0,0.0001671,2]
[363269936,1748656060264,-430.0,0.00016984,2]
[363269937,1748656060285,-430.0,0.00017258,2]
[363269938,1748656060303,-314.81381568,0.00017437,2]
[363269939,1748656060323,-430.0,0.00017532,2]
[363269940,1748656060341,-430.0,0.00017806,2]
[363269941,1748656060360,-430.0,0.0001808,2]
[363269942,1748656060378,-430.0,0.00018354,2]
[363269943,1748656060397,-194.02,0.0001863,2]
[363269944,1748656060418,-956.47,0.00019452,2]
[363269945,1748656060438,-956.47,0.00019726,2]
[363269946,1748656060457,-86028.28343132,0.0002,2]
[363269947,1748656060514,-430.0,0.00016438,2]
[363269948,1748656060538,-430.0,0.00016712,2]
[363269949,1748656060558,-430.0,0.00016986,2]
[363269950,1748656060578,-430.0,0.0001726,2]
[363269951,1748656060597,-430.0,0.00017534,2]
[363269952,1748656060619,-430.0,0.00017808,2]
[363269953,1748656060639,-467.66,0.00018082,2]
[363269954,1748656060658,-40812.2601828,0.0002,3]
[363269955,1748656060677,-85455.8126842,0.0002,2]
[363269956,1748656060725,-430.0,0.00016438,2]
[363269957,1748656060745,-807.65812999,0.00019178,2]
[363269958,1748656060764,-20841.17742001,0.0002,2]
[363270019,1748656232270,-1000.0,0.00016436,2]
[363270020,1748656232280,-1000.0,0.00016437,2]
[363270021,1748656232290,-1000.0,0.00016437,2]
[363270022,1748656232299,-300.0,0.00016437,2]
[363270023,1748656232309,-446.21315886,0.00016438,2]
[363270024,1748656232318,-862.38,0.00016438,2]
[363270025,1748656232328,-430.0,0.00016438,2]
[363270026,1748656232337,-430.0,0.00016438,2]
[363270027,1748656232346,-430.0,0.00016438,2]
[363270028,1748656232356,-430.0,0.00016438,2]
[363270029,1748656232365,-430.0,0.00016438,2]
[363270030,1748656232375,-495.01,0.00016438,2]
[363270031,1748656232385,-430.0,0.00016438,2]
[363270032,1748656232395,-430.0,0.00016438,2]
[363270033,1748656232404,-430.0,0.00016438,2]
[363270034,1748656232414,-430.0,0.00016438,2]
[363270035,1748656232427,-430.0,0.00016438,2]
[363270036,1748656232437,-430.0,0.00016438,2]
[363270037,1748656232446,-328.62542414,0.00016438,2]
[363270038,1748656232467,-101.37457586,0.00016438,2]
[363270040,1748656232476,-430.0,0.00016438,2]
[363270042,1748656232486,-430.0,0.00016438,2]
[363270044,1748656232495,-430.0,0.00016438,2]
[363270046,1748656232505,-1528.02,0.00016438,2]
[363270048,1748656232514,-334.12828052,0.00016438,2]
[363270050,1748656232523,-430.0,0.00016438,2]
[363270051,1748656232533,-430.0,0.00016438,2]
[363270052,1748656232542,-2554.19,0.00016438,2]
[363270053,1748656232552,-430.0,0.00016438,2]
[363270054,1748656232562,-430.0,0.00016438,2]
[363270055,1748656232572,-1699.58,0.00016438,2]
[363270056,1748656232582,-430.0,0.00016438,2]
[363270057,1748656232591,-430.0,0.00016438,2]
[363270058,1748656232601,-438.74825291,0.00016438,2]
[363270059,1748656232611,-206.6497769,0.00016438,2]
[363270060,1748656232620,-430.0,0.00016438,2]
[363270061,1748656232630,-561.62,0.00016438,2]
[363270062,1748656232639,-948.43,0.00016438,2]
[363270063,1748656232649,-430.0,0.00016438,2]
[363270064,1748656232659,-430.0,0.00016438,2]
[363270065,1748656232676,-795.03,0.00016438,2]
[363270066,1748656232685,-430.0,0.00016438,2]
[363270067,1748656232880,-658.45,0.00016438,2]
[363270068,1748656232890,-430.0,0.00016438,2]
[363270069,1748656232900,-430.0,0.00016438,2]
[363270070,1748656232910,-430.0,0.00016438,2]
[363270071,1748656232919,-430.0,0.00016438,2]
[363270072,1748656232932,-430.0,0.00016438,2]
[363270073,1748656232942,-430.0,0.00016438,2]
[363270074,1748656232951,-430.0,0.00016438,2]
[363270075,1748656232961,-440.84206009,0.00016438,2]
[363270076,1748656232971,-430.0,0.00016438,2]
[363270077,1748656232980,-1192.93,0.00016438,2]
[363270078,1748656232990,-430.0,0.00016438,2]
[363270079,1748656233000,-430.0,0.00016438,2]
[363270080,1748656233012,-430.0,0.00016438,2]
[363270081,1748656233023,-733.23,0.00016438,2]
[363270082,1748656233033,-962.85,0.00016438,2]
[363270083,1748656233043,-430.0,0.00016438,2]
[363270084,1748656233052,-430.0,0.00016438,2]
[363270085,1748656233062,-184.83933637,0.00016612,2]
[363270086,1748656233072,-1000.0,0.00016708,2]
[363270087,1748656233082,-430.0,0.0001671,2]
[363270088,1748656233092,-2271.2,0.0001671,2]
[363270089,1748656233102,-1000.0,0.0001671,2]
[363270090,1748656233112,-804.95,0.0001671,2]
[363270091,1748656233122,-1000.0,0.00016711,2]
[363270092,1748656233133,-1000.0,0.00016711,2]
[363270093,1748656233143,-430.0,0.00016712,2]
[363270094,1748656233153,-862.38,0.00016712,2]
[363270095,1748656233163,-430.0,0.00016712,2]
[363270096,1748656233174,-430.0,0.00016712,2]
[363270097,1748656233184,-430.0,0.00016712,2]
[363270098,1748656233195,-430.0,0.00016712,2]
[363270099,1748656233205,-430.0,0.00016712,2]
[363270100,1748656233215,-495.01,0.00016712,2]
[363270101,1748656233224,-430.0,0.00016712,2]
[363270102,1748656233234,-430.0,0.00016712,2]
[363270103,1748656233243,-430.0,0.00016712,2]
[363270104,1748656233253,-430.0,0.00016712,2]
[363270105,1748656233263,-430.0,0.00016712,2]
[363270106,1748656233272,-430.0,0.00016712,2]
[363270107,1748656233281,-430.0,0.00016712,2]
[363270108,1748656233291,-430.0,0.00016712,2]
[363270109,1748656233301,-430.0,0.00016712,2]
[363270110,1748656233312,-430.0,0.00016712,2]
[363270111,1748656233322,-1528.02,0.00016712,2]
[363270112,1748656233332,-430.0,0.00016712,2]
[363270113,1748656233342,-430.0,0.00016712,2]
[363270114,1748656233351,-2554.19,0.00016712,2]
[363270115,1748656233361,-430.0,0.00016712,2]
[363270116,1748656233371,-430.0,0.00016712,2]
[363270117,1748656233380,-1699.58,0.00016712,2]
[363270118,1748656233390,-430.0,0.00016712,2]
[363270119,1748656233400,-430.0,0.00016712,2]
[363270120,1748656233409,-430.0,0.00016712,2]
[363270121,1748656233419,-561.62,0.00016712,2]
[363270122,1748656233431,-948.43,0.00016712,2]
[363270123,1748656233440,-430.0,0.00016712,2]
[363270124,1748656233449,-430.0,0.00016712,2]
[363270125,1748656233459,-795.03,0.00016712,2]
[363270126,1748656233468,-430.0,0.00016712,2]
[363270127,1748656233478,-658.45,0.00016712,2]
[363270128,1748656233488,-430.0,0.00016712,2]
[363270129,1748656233498,-430.0,0.00016712,2]
[363270130,1748656233507,-430.0,0.00016712,2]
[363270131,1748656233517,-430.0,0.00016712,2]
[363270132,1748656233527,-430.0,0.00016712,2]
[363270133,1748656233536,-430.0,0.00016712,2]
[363270134,1748656233545,-430.0,0.00016712,2]
[363270135,1748656233555,-430.0,0.00016712,2]
[363270136,1748656233565,-1192.93,0.00016712,2]
[363270137,1748656233575,-430.0,0.00016712,2]
[363270138,1748656233585,-430.0,0.00016712,2]
[363270139,1748656233595,-430.0,0.00016712,2]
[363270140,1748656233604,-733.23,0.00016712,2]
[363270141,1748656233614,-962.85,0.00016712,2]
[363270142,1748656233623,-430.0,0.00016712,2]
[363270143,1748656233632,-430.0,0.00016712,2]
[363270144,1748656233642,-430.0,0.00016984,2]
[363270145,1748656233651,-2271.2,0.00016984,2]
[363270146,1748656233661,-1000.0,0.00016984,2]
[363270147,1748656233670,-804.95,0.00016984,2]
[363270148,1748656233682,-174.13010596,0.00016985,2]
[363270149,1748656233692,-1000.0,0.00016985,2]
[363270150,1748656233701,-1000.0,0.00016985,2]
[363270151,1748656233710,-430.0,0.00016985,2]
[363270152,1748656233720,-430.0,0.00016986,2]
[363270153,1748656233729,-862.38,0.00016986,2]
[363270154,1748656233739,-430.0,0.00016986,2]
[363270155,1748656233749,-430.0,0.00016986,2]
[363270156,1748656233758,-430.0,0.00016986,2]
[363270157,1748656233768,-430.0,0.00016986,2]
[363270158,1748656233777,-430.0,0.00016986,2]
[363270159,1748656233786,-495.01,0.00016986,2]
[363270160,1748656233797,-430.0,0.00016986,2]
[363270161,1748656233806,-430.0,0.00016986,2]
[363270162,1748656233814,-430.0,0.00016986,2]
[363270163,1748656233821,-430.0,0.00016986,2]
[363270164,1748656233830,-430.0,0.00016986,2]
[363270165,1748656233839,-446.1432869,0.00016986,2]
[363270166,1748656233849,-430.0,0.00016986,2]
[363270167,1748656233858,-430.0,0.00016986,2]
[363270168,1748656233867,-430.0,0.00016986,2]
[363270169,1748656233876,-1528.02,0.00016986,2]
[363270170,1748656233886,-430.0,0.00016986,2]
[363270171,1748656233895,-430.0,0.00016986,2]
[363270172,1748656233905,-2554.19,0.00016986,2]
[363270173,1748656233914,-174.72274042,0.00016986,2]
[363270174,1748656233925,-430.0,0.00016986,2]
[363270175,1748656233940,-1699.58,0.00016986,2]
[363270176,1748656233950,-430.0,0.00016986,2]
[363270177,1748656233961,-430.0,0.00016986,2]
[363270178,1748656233971,-430.0,0.00016986,2]
[363270179,1748656233981,-561.62,0.00016986,2]
[363270180,1748656233991,-430.0,0.00016986,2]
[363270181,1748656234001,-430.0,0.00016986,2]
[363270182,1748656234012,-948.43,0.00016986,2]
[363270183,1748656234023,-795.03,0.00016986,2]
[363270184,1748656234033,-430.0,0.00016986,2]
[363270185,1748656234043,-658.45,0.00016986,2]
[363270186,1748656234054,-430.0,0.00016986,2]
[363270187,1748656234064,-430.0,0.00016986,2]
[363270188,1748656234075,-430.0,0.00016986,2]
[363270189,1748656234087,-430.0,0.00016986,2]
[363270190,1748656234098,-430.0,0.00016986,2]
[363270191,1748656234108,-430.0,0.00016986,2]
[363270192,1748656234118,-430.0,0.00016986,2]
[363270193,1748656234129,-430.0,0.00016986,2]
[363270194,1748656234139,-1192.93,0.00016986,2]
[363270195,1748656234150,-430.0,0.00016986,2]
[363270196,1748656234160,-430.0,0.00016986,2]
[363270197,1748656234171,-430.0,0.00016986,2]
[363270198,1748656234191,-733.23,0.00016986,2]
[363270199,1748656234201,-962.85,0.00016986,2]
[363270200,1748656234211,-430.0,0.00016986,2]
[363270201,1748656234222,-430.0,0.00016986,2]
[363270202,1748656234232,-1000.0,0.00016999,2]
[363270203,1748656234242,-1000.0,0.00016999,2]
[363270204,1748656234252,-1000.0,0.00016999,2]
[363270205,1748656234262,-1000.0,0.00016999,2]
[363270206,1748656234272,-430.0,0.00017258,2]
[363270207,1748656234282,-2271.2,0.00017258,2]
[363270208,1748656234292,-1000.0,0.00017258,2]
[363270209,1748656234302,-804.95,0.00017258,2]
[363270210,1748656234311,-1000.0,0.00017259,2]
[363270211,1748656234321,-430.0,0.00017259,2]
[363270212,1748656234331,-430.0,0.0001726,2]
[363270213,1748656234340,-862.38,0.0001726,2]
[363270214,1748656234351,-430.0,0.0001726,2]
[363270215,1748656234360,-430.0,0.0001726,2]
[363270216,1748656234370,-430.0,0.0001726,2]
[363270217,1748656234379,-430.0,0.0001726,2]
[363270218,1748656234390,-430.0,0.0001726,2]
[363270219,1748656234399,-495.01,0.0001726,2]
[363270220,1748656234409,-430.0,0.0001726,2]
[363270221,1748656234418,-430.0,0.0001726,2]
[363270222,1748656234433,-430.0,0.0001726,2]
[363270223,1748656234443,-430.0,0.0001726,2]
[363270224,1748656234453,-430.0,0.0001726,2]
[363270225,1748656234462,-430.0,0.0001726,2]
[363270226,1748656234472,-1528.02,0.0001726,2]
[363270227,1748656234482,-430.0,0.0001726,2]
[363270228,1748656234492,-2554.19,0.0001726,2]
[363270229,1748656234501,-1699.58,0.0001726,2]
[363270230,1748656234512,-430.0,0.0001726,2]
[363270231,1748656234521,-430.0,0.0001726,2]
[363270232,1748656234531,-430.0,0.0001726,2]
[363270233,1748656234541,-561.62,0.0001726,2]
[363270234,1748656234550,-430.0,0.0001726,2]